bitfinex-derivatives/quotes_ETHF0:USTF0_20250501
["timestamp","ask_amount","ask_price","bid_price","bid_amount"]
[1746121397714,1.08135,1848.7,1848.6,3.2078]
[1746121398014,1.08147,1848.5,1848.4,3.2078]
[1746121398708,1.08146,1848.6,1848.4,3.2078]
[1746121398906,1.6879,1848.7,1848.5,1.08147]
[1746121399106,4.95744,1848.6,1848.5,1.08147]
[1746121399510,3.876,1848.6,1848.5,1.08147]
[1746121399814,4.95745,1848.6,1848.4,5.89758]
[1746121400112,4.95745,1848.6,1848.5,1.08147]
[1746121400314,6.64429,1848.7,1848.6,1.08141]
[1746121400614,6.64429,1848.7,1848.6,3.2078]
[1746121400815,4.95632,1848.8,1848.6,3.2078]
[1746121401109,4.95632,1848.8,1848.7,1.08133]
[1746121401914,1.08135,1848.7,1848.6,4.28917]
[1746121402211,2.71955,1848.7,1848.6,4.28917]
[1746121402613,2.71955,1848.7,1848.6,4.28921]
[1746121403015,2.71955,1848.7,1848.6,3.2078]
[1746121403216,1.08147,1848.5,1848.4,4.2893]
[1746121403514,1.08145,1848.6,1848.5,1.08144]
[1746121403706,1.08147,1848.5,1848.4,4.28927]
[1746121403908,1.08147,1848.5,1848.4,3.2078]
[1746121404109,1.08147,1848.5,1848.4,4.28932]
[1746121404305,1.08147,1848.5,1848.4,3.2078]
[1746121404608,1.08147,1848.5,1848.4,4.28932]
[1746121405716,2.71966,1848.6,1848.5,1.08147]
[1746121406013,1.08147,1848.5,1848.4,4.28929]
[1746121406214,2.74527,1848.5,1848.4,4.28929]
[1746121407310,2.74527,1848.5,1848.4,3.2078]
[1746121408112,2.74527,1848.5,1848.4,4.28932]
[1746121408814,2.74527,1848.5,1848.4,5.89422]
[1746121409816,2.74527,1848.5,1848.4,4.28932]
[1746121410010,2.74527,1848.5,1848.4,3.2078]
[1746121411616,2.74527,1848.5,1848.4,4.28932]
[1746121411817,2.74527,1848.5,1848.4,3.2078]
[1746121413516,1.08188,1847.9,1847.7,3.2078]
[1746121413719,1.08188,1847.9,1847.8,2.08188]
[1746121414015,3.853,1848.6,1848.1,2.70423]
[1746121414319,1.6525,1848.4,1848.3,1.08158]
[1746121414911,2.73402,1848.4,1848.3,1.08158]
[1746121415109,2.73406,1848.4,1848.3,1.08158]
[1746121415615,1.6525,1848.4,1848.3,1.08158]
[1746121416116,1.6525,1848.4,1848.3,2.69578]
[1746121417418,1.08132,1848.8,1848.7,1.0813]
[1746121417717,1.08151,1848.5,1848.4,1.08149]
[1746121417920,1.08146,1848.6,1848.5,1.08144]
[1746121418117,1.0815,1848.5,1848.4,1.08147]
[1746121419425,2.66095,1848.6,1848.5,1.08147]
[1746121420020,1.0815,1848.5,1848.4,1.08148]
[1746121420224,2.7412,1848.5,1848.4,1.08148]
[1746121420720,2.74117,1848.5,1848.4,1.08148]
[1746121420928,1.6597,1848.5,1848.4,1.08148]
[1746121421120,1.6597,1848.5,1848.4,2.75888]
[1746121421323,1.08136,1848.7,1848.6,1.08141]
[1746121421524,1.08123,1848.9,1848.8,1.08127]
[1746121421822,5.91059,1849.2,1848.5,7.58874]
[1746121421823,3.2078,1849.2,1848.9,1.0812]
[1746121422021,1.6597,1849.2,1849.1,4.28892]
[1746121422226,1.6567,1849.5,1849.4,1.08094]
[1746121422424,2.73759,1849.5,1849.4,4.28874]
[1746121422821,1.08089,1849.5,1849.4,4.28874]
[1746121423128,12.69270199,1849.6,1849.2,3.2078]
[1746121423333,1.08091,1849.5,1849.4,1.0809]
[1746121423526,1.69630939,1849.5,1849.4,1.0809]
[1746121423924,0.04100939,1849.5,1849.4,1.0809]
[1746121424226,0.04100939,1849.5,1849.4,4.2887]
[1746121424613,0.04100939,1849.5,1849.4,1.0809]
[1746121424614,1.15520613,1849.5,1849.4,1.0809]
[1746121424819,2.81050613,1849.5,1849.4,1.0809]
[1746121425020,1.72962613,1849.5,1849.4,1.0809]
[1746121425328,2.81050613,1849.5,1849.4,1.0809]
[1746121425525,1.08098,1849.4,1849.3,1.08097]
[1746121425726,2.81060613,1849.4,1849.3,1.08097]
[1746121426221,2.81056613,1849.4,1849.3,1.08097]
[1746121426422,1.72962613,1849.4,1849.2,4.9449]
[1746121426621,2.73629,1849.4,1849.3,1.081]
[1746121426929,2.73629,1849.4,1849.3,1.00667387]
[1746121427929,1.081,1849.3,1849.2,4.28881]
[1746121428227,2.6882,1849.3,1849.2,4.28881]
[1746121428926,1.08098,1849.4,1849.3,1.08097]
[1746121429120,2.70236,1849.4,1849.0,4.9208]
[1746121429326,1.08112,1849.1,1849.0,1.93594]
[1746121429629,1.08109,1849.2,1849.1,1.08106]
[1746121430732,1.08112,1849.1,1849.0,6.76513]
[1746121431031,1.08112,1849.1,1849.0,5.14373]
[1746121431233,1.08112,1849.1,1849.0,4.28893]
[1746121431526,1.08112,1849.1,1849.0,3.2078]
[1746121434433,12.93556,1849.3,1848.8,3.2078]
[1746121434434,2.70296,1849.0,1848.8,3.2078]
[1746121434733,2.79983,1848.9,1848.8,4.28909]
[1746121434931,1.7186,1848.9,1848.8,4.28909]
[1746121435130,2.79983,1848.9,1848.8,4.28909]
[1746121436332,1.08129,1848.8,1848.7,2.75091]
[1746121436533,2.79429,1848.8,1848.7,1.08131]
[1746121437329,1.08135,1848.7,1848.6,8.14016]
[1746121437632,2.79435,1848.7,1848.6,8.14016]
[1746121438131,1.713,1848.7,1848.6,8.14016]
[1746121439129,2.79435,1848.7,1848.6,8.14016]
[1746121439334,1.713,1848.7,1848.6,8.14016]
[1746121440134,2.79435,1848.7,1848.6,8.14016]
[1746121440339,1.713,1848.7,1848.6,9.83766]
[1746121440542,2.79435,1848.7,1848.6,9.83766]
[1746121441934,1.713,1848.7,1848.6,9.83766]
[1746121442935,1.08127,1848.9,1848.7,1.08135]
[1746121443128,1.08127,1848.9,1848.8,4.28903]
[1746121443633,2.70847,1848.9,1848.8,4.28903]
[1746121444028,2.70847,1848.9,1848.8,3.2078]
[1746121444428,2.70847,1848.9,1848.8,4.28909]
[1746121445136,1.6272,1848.9,1848.8,4.28909]
[1746121445536,1.6272,1848.9,1848.8,5.14579]
[1746121445838,2.70843,1848.9,1848.8,5.14579]
[1746121446041,1.6272,1848.9,1848.8,5.14579]
[1746121447336,2.70843,1848.9,1848.8,5.14579]
[1746121447736,2.70843,1848.9,1848.8,4.28909]
[1746121447930,1.6272,1848.9,1848.8,4.28909]
[1746121448131,2.70843,1848.9,1848.8,4.28909]
[1746121448327,1.6272,1848.9,1848.8,4.28909]
[1746121449239,2.70843,1848.9,1848.8,4.28909]
[1746121449536,1.6272,1848.9,1848.8,4.28909]
[1746121452437,2.50766715,1849.3,1849.2,1.08106]
[1746121452734,1.6096,1849.3,1849.2,1.08106]
[1746121452927,2.6906,1849.3,1849.2,1.08106]
[1746121453343,3.28673928,1849.3,1849.2,1.08106]
[1746121453637,2.6906,1849.3,1849.2,1.08106]
[1746121454640,1.08109,1849.2,1849.1,1.08106]
[1746121454938,2.75216,1849.2,1849.1,1.08106]
[1746121455439,1.08117,1849.1,1849.0,1.08113]
[1746121455640,1.08117,1849.0,1848.9,3.2078]
[1746121455844,1.08117,1849.0,1848.9,4.28903]
[1746121456134,1.08117,1849.0,1848.9,4.28899]
[1746121456834,1.6711,1849.1,1849.0,1.08117]
[1746121457134,2.75222,1849.1,1849.0,1.08117]
[1746121459140,1.6711,1849.1,1849.0,1.08117]
[1746121459332,2.75222,1849.1,1849.0,1.08117]
[1746121461041,1.08117,1849.0,1848.9,4.28899]
[1746121461238,2.67937,1849.0,1848.9,4.28899]
[1746121462838,2.67937,1849.0,1848.7,5.20195]
[1746121462839,1.5982,1849.0,1848.7,3.2078]
[1746121463037,1.08141,1848.6,1848.5,3.2078]
[1746121463242,1.08141,1848.6,1848.5,4.28927]
[1746121464143,1.08141,1848.6,1848.5,3.2078]
[1746121464636,1.08152,1848.4,1848.3,1.94054]
[1746121466835,1.08152,1848.4,1848.3,3.55274]
[1746121468844,1.08152,1848.4,1848.3,1.94054]
[1746121469045,2.77342,1848.4,1848.3,1.94054]
[1746121469943,1.6919,1848.4,1848.3,1.94054]
[1746121470147,2.77342,1848.4,1848.3,1.94054]
[1746121470342,1.6919,1848.4,1848.3,3.63524]
[1746121470543,2.77342,1848.4,1848.3,3.63524]
[1746121471844,2.77342,1848.4,1848.3,1.94054]
[1746121472437,6.6919,1848.4,1848.0,3.2078]
[1746121472640,1.0818,1848.0,1847.9,3.2078]
[1746121472842,1.08182,1847.9,1847.8,1.96619]
[1746121473043,2.75762,1847.9,1847.8,1.44427]
[1746121473845,2.75762,1847.9,1847.8,0.36239]
[1746121474444,1.6758,1847.9,1847.8,4.65207]
[1746121475142,2.75762,1847.9,1847.8,1.44427]
[1746121475948,2.75762,1847.9,1847.8,0.36239]
[1746121476341,2.75762,1847.9,1847.8,1.44427]
[1746121476746,2.75762,1847.9,1847.8,0.36239]
[1746121478546,2.75762,1847.9,1847.8,1.44427]
[1746121478746,2.75762,1847.9,1847.8,0.36239]
[1746121479253,2.75762,1847.9,1847.8,1.44427]
[1746121479451,2.75762,1847.9,1847.8,0.36239]
[1746121480254,2.75762,1847.9,1847.8,1.44427]
[1746121480650,2.75762,1847.9,1847.8,0.36239]
[1746121480846,56.50020185,1849.4,1847.8,5.36239]
[1746121481155,1.6145,1848.8,1848.3,2.70388]
[1746121481351,1.8865,1849.0,1848.8,1.08125]
[1746121481551,1.08127,1848.9,1848.5,5.91147]
[1746121481749,1.6145,1848.9,1848.8,1.08129]
[1746121482050,2.69573,1848.9,1848.8,1.08129]
[1746121482251,1.6145,1848.9,1848.8,1.08129]
[1746121482555,1.6145,1848.9,1848.8,2.71249]
[1746121485258,5.9782,1849.3,1849.2,1.08106]
[1746121485458,4.8972,1849.3,1849.0,2.70294]
[1746121485660,1.08098,1849.4,1849.3,1.081]
[1746121486060,16.7628,1849.6,1849.3,3.2078]
[1746121486257,1.08088,1849.5,1849.4,1.0809]
[1746121486461,14.08862,1849.6,1849.5,1.08088]
[1746121486662,1.7299,1849.5,1849.4,1.0809]
[1746121487162,1.7299,1849.5,1849.3,3.2078]
[1746121487459,0.04101931,1849.4,1849.3,4.28878]
[1746121488662,1.66632597,1849.4,1849.3,4.28878]
[1746121490362,2.74726597,1849.4,1849.3,4.28878]
[1746121491863,2.74726597,1849.4,1849.3,4.2888]
[1746121492363,2.74726597,1849.4,1849.3,1.081]
[1746121494456,2.78825615,1849.4,1849.3,1.081]
[1746121494870,1.081,1849.3,1849.2,2.72784]
[1746121495165,2.7501,1849.3,1849.2,2.72784]
[1746121495568,1.78441615,1849.3,1849.2,2.72784]
[1746121496869,0.11531615,1849.3,1849.2,2.72784]
[1746121497066,1.69671615,1849.3,1849.2,2.72784]
[1746121497265,0.11531615,1849.3,1849.2,2.72784]
[1746121497869,1.69671615,1849.3,1849.2,2.72784]
[1746121498070,2.77771615,1849.3,1849.2,1.08104]
[1746121498865,1.69671615,1849.3,1849.2,1.08104]
[1746121499065,2.77771615,1849.3,1849.2,1.08104]
[1746121499665,1.69671615,1849.3,1849.2,1.08104]
[1746121500074,2.77771615,1849.3,1849.2,1.08104]
[1746121501370,1.69671615,1849.3,1849.2,1.08104]
[1746121501766,0.11531615,1849.3,1849.2,1.08104]
[1746121501964,0.11531615,1849.3,1849.2,2.71484]
[1746121503771,0.11531615,1849.3,1849.2,7.71484]
[1746121504969,6.15e-06,1849.3,1849.2,7.71484]
[1746121505171,12.144,1849.6,1849.5,1.08088]
[1746121505474,12.144,1849.6,1849.5,4.28868]
[1746121505673,13.7259,1849.6,1849.5,4.28868]
[1746121506274,12.144,1849.6,1849.5,4.28868]
[1746121507073,13.7259,1849.6,1849.5,4.28868]
[1746121507466,14.80672,1849.6,1849.5,4.28868]
[1746121508073,13.7259,1849.6,1849.5,4.28868]
[1746121512073,12.144,1849.6,1849.5,4.28868]
[1746121514671,13.22482,1849.6,1849.5,4.28868]
[1746121514876,13.0024,1849.6,1849.5,1.08088]
[1746121515281,15.72612,1849.6,1849.5,1.08088]
[1746121515876,1.08088,1849.5,1849.4,3.2078]
[1746121516074,3.56818,1849.5,1849.4,3.2078]
[1746121517281,3.56818,1849.5,1849.4,4.28874]
[1746121517583,3.56818,1849.5,1849.4,3.2078]
[1746121517785,1.08094,1849.4,1849.3,1.08095]
[1746121518078,2.65704,1849.4,1849.3,1.08095]
[1746121518278,2.65704,1849.4,1849.3,1.081]
[1746121518483,1.08114,1849.1,1849.0,1.0811]
[1746121518786,1.08128,1848.9,1848.8,1.08126]
[1746121519083,4.33242,1849.0,1848.9,1.08123]
[1746121519387,2.75632,1849.0,1848.9,1.08123]
[1746121519581,1.08125,1848.9,1848.8,1.08125]
[1746121521579,1.6751,1849.0,1848.9,1.08123]
[1746121521580,2.7563,1849.0,1848.9,1.08123]
[1746121521781,1.08127,1848.9,1848.8,1.08124]
[1746121522482,2.75632,1849.0,1848.9,1.08123]
[1746121522880,1.08127,1848.9,1848.8,1.08124]
[1746121523485,2.75632,1849.0,1848.9,1.08123]
[1746121524376,1.08127,1848.9,1848.8,1.08124]
[1746121524584,2.75633,1849.0,1848.9,1.08123]
[1746121524786,1.08113,1849.1,1849.0,1.08117]
[1746121525680,1.08113,1849.1,1849.0,1.87207]
[1746121525889,1.08113,1849.1,1849.0,1.08117]
[1746121526787,1.08117,1849.0,1848.9,4.28897]
[1746121529486,1.08116,1849.1,1849.0,1.08114]
[1746121530286,1.08117,1849.0,1848.9,4.28899]
[1746121530485,1.08123,1848.9,1848.8,1.08124]
[1746121531389,4.28903,1848.9,1848.8,1.08124]
[1746121531588,1.08152,1848.4,1848.3,3.2078]
[1746121531885,1.08158,1848.3,1848.2,1.08161]
[1746121532485,1.08163,1848.3,1848.2,1.08161]
[1746121533088,2.71048,1848.3,1848.2,1.08161]
[1746121533389,1.6289,1848.3,1848.2,1.08161]
[1746121534188,2.71048,1848.3,1848.2,1.08161]
[1746121534778,1.6289,1848.3,1848.2,4.28941]
[1746121539096,2.71048,1848.3,1848.2,4.28941]
[1746121539298,2.71048,1848.3,1848.1,1.679]
[1746121539299,1.6289,1848.3,1848.0,4.8753]
[1746121539604,2.79328,1848.2,1848.1,1.08164]
[1746121539996,1.7116,1848.2,1848.1,1.08164]
[1746121540390,1.7116,1848.2,1848.1,2.79454]
[1746121540895,2.79324,1848.2,1848.1,2.79454]
[1746121541595,1.7116,1848.2,1848.1,2.79454]
[1746121541890,1.7116,1848.2,1848.1,1.08164]
[1746121542095,2.79324,1848.2,1848.1,1.08164]
[1746121542490,1.0817,1848.1,1848.0,2.74921]
[1746121542794,2.7432,1848.1,1848.0,2.74921]
[1746121543697,1.08176,1848.0,1847.9,9.1398]
[1746121543895,1.08182,1847.9,1847.8,0.36239]
[1746121544089,0.8254,1847.9,1847.8,1.44427]
[1746121544293,2.481,1848.0,1847.8,1.44427]
[1746121544294,0.84178,1848.5,1847.9,1.08182]
[1746121544495,1.6615,1848.3,1848.2,1.08159]
[1746121544689,1.6615,1848.3,1848.2,2.76489]
[1746121545397,2.74308,1848.3,1848.2,2.76489]
[1746121546397,2.74308,1848.3,1848.2,1.08159]
[1746121547303,1.08166,1848.2,1848.1,1.08164]
[1746121547602,1.0817,1848.1,1848.0,2.67671]
[1746121548796,1.08176,1848.0,1847.9,7.96457]
[1746121549103,1.08176,1848.0,1847.9,3.675]
[1746121549304,1.08176,1848.1,1848.0,1.08172]
[1746121549504,2.77716,1848.1,1848.0,1.08172]
[1746121551402,1.6954,1848.1,1848.0,1.08172]
[1746121551603,2.7771,1848.1,1848.0,1.08172]
[1746121552204,1.08176,1848.0,1847.9,4.75679]
[1746121552405,3.66446,1848.0,1847.9,4.75679]
[1746121552706,1.7217,1848.0,1847.9,4.75679]
[1746121552902,2.80346,1848.0,1847.9,4.75679]
[1746121554710,2.80346,1848.0,1847.9,7.96459]
[1746121554911,2.80346,1848.0,1847.9,4.75679]
[1746121555204,1.7217,1848.0,1847.9,7.96459]
[1746121555399,1.7217,1848.0,1847.9,9.56769]
[1746121560210,1.7217,1848.0,1847.9,6.35989]
[1746121560604,0.861,1848.3,1848.2,1.08164]
[1746121560810,1.08133,1848.8,1848.3,1.08158]
[1746121561005,0.8191,1848.7,1848.6,1.08135]
[1746121561207,0.8144,1848.9,1848.6,3.2078]
[1746121561404,1.6335,1848.9,1848.8,4.28909]
[1746121562113,5.17208633,1848.9,1848.8,4.28909]
[1746121562304,6.76388633,1848.9,1848.8,4.28909]
[1746121563007,1.08136,1848.7,1848.5,3.676]
[1746121563312,1.08136,1848.7,1848.6,1.08141]
[1746121563611,1.08141,1848.6,1848.5,4.75742]
[1746121563813,1.08139,1848.7,1848.5,1.08142]
[1746121564013,1.6904,1848.6,1848.5,1.08142]
[1746121564204,1.6904,1848.6,1848.2,6.8738]
[1746121564409,1.08152,1848.4,1848.2,7.95539]
[1746121564600,1.6904,1848.3,1848.2,4.74759]
[1746121564800,1.6904,1848.3,1848.2,1.08159]
[1746121568209,1.6904,1848.3,1848.2,4.28939]
[1746121568414,1.6517,1848.5,1848.4,1.08152]
[1746121569112,3.2629,1848.5,1848.4,1.08152]
[1746121569621,4.34437,1848.5,1848.4,1.08152]
[1746121573018,3.2629,1848.5,1848.4,1.08152]
[1746121573217,4.34437,1848.5,1848.4,1.08152]
[1746121573418,3.2629,1848.5,1848.4,1.08152]
[1746121574114,1.6112,1848.5,1848.4,4.28932]
[1746121574316,6.20447633,1848.8,1848.7,1.08135]
[1746121574710,2.66589,1848.8,1848.7,1.08135]
[1746121574912,1.5846,1848.8,1848.7,1.08135]
[1746121575312,7.07717267,1848.9,1848.8,1.08129]
[1746121575718,9.77710267,1848.9,1848.8,1.08129]
[1746121575911,8.69587267,1848.9,1848.8,1.08129]
[1746121577321,8.69587267,1848.9,1848.8,3.50739]
[1746121578115,7.07717267,1848.9,1848.8,6.71519]
[1746121579117,4.25152054,1848.9,1848.8,11.71519]
[1746121579325,4.25152054,1848.9,1848.8,15.38019]
[1746121579520,4.25152054,1848.9,1848.8,10.38019]
[1746121579723,4.25152054,1848.9,1848.8,15.38019]
[1746121580826,4.25152054,1848.9,1848.8,10.38019]
[1746121581616,3.06774054,1848.9,1848.8,10.38019]
[1746121581924,1.69815054,1848.9,1848.8,10.38019]
[1746121582324,0.51276054,1848.9,1848.8,10.38019]
[1746121582519,7.07717267,1849.1,1848.8,25.63724]
[1746121582716,7.07717267,1849.1,1849.0,4.28897]
[1746121584326,1.6855,1849.3,1849.0,3.2078]
[1746121584633,1.6855,1849.3,1849.2,4.28886]
[1746121585021,1.6855,1849.3,1849.2,6.74216]
[1746121585422,7.07717267,1849.4,1849.3,1.081]
[1746121585616,8.68317267,1849.4,1849.3,2.674]
[1746121586628,8.72418781,1849.4,1849.3,2.674]
[1746121587824,8.75750893,1849.4,1849.3,2.674]
[1746121588225,1.68033626,1849.4,1849.3,2.674]
[1746121589523,1.68033626,1849.4,1849.3,1.081]
[1746121592429,1.68033626,1849.4,1849.3,2.7196]
[1746121593224,1.68033626,1849.4,1849.3,5.9274]
[1746121593529,0.07433626,1849.4,1849.3,5.9274]
[1746121595331,12.144,1849.6,1849.5,1.08088]
[1746121595630,19.24117267,1849.7,1849.6,1.08082]
[1746121595834,19.24117267,1849.7,1849.6,4.47462]
[1746121596221,19.24117267,1849.7,1849.6,9.47462]
[1746121596530,19.24117267,1849.7,1849.6,4.47462]
[1746121596925,20.86407267,1849.7,1849.6,4.47462]
[1746121599528,19.24117267,1849.7,1849.6,4.47462]
[1746121600342,19.24117267,1849.7,1849.6,10.40662]
[1746121600937,26.53939751,1850.1,1850.0,1.08059]
[1746121601235,26.53939751,1850.1,1850.0,7.95039]
[1746121601836,28.25249751,1850.1,1850.0,7.95039]
[1746121602036,29.33302751,1850.1,1850.0,3.2078]
[1746121602237,34.33302751,1850.1,1850.0,1.08059]
[1746121602532,7.79363,1850.1,1850.0,1.08059]
[1746121602739,8.59923,1850.1,1850.0,1.08059]
[1746121602930,3.59923,1850.1,1850.0,1.08059]
[1746121603530,2.5187,1850.1,1850.0,1.08059]
[1746121604537,2.5187,1850.1,1850.0,4.28839]
[1746121606641,2.5187,1850.1,1850.0,1.08059]
[1746121608747,2.5187,1850.1,1850.0,4.28839]
[1746121609642,2.5187,1850.1,1850.0,1.08059]
[1746121610444,2.5187,1850.1,1850.0,4.28839]
[1746121610647,2.5187,1850.1,1850.0,1.08059]
[1746121611149,2.5187,1850.1,1849.9,1.6241]
[1746121611341,1.7131,1850.1,1850.0,5.90349]
[1746121611537,1.7131,1850.1,1850.0,9.56449]
[1746121613452,0.8353,1850.3,1850.2,1.08047]
[1746121613648,2.4528,1850.3,1850.2,1.08047]
[1746121613844,1.6175,1850.3,1850.2,4.28827]
[1746121618558,0.43813,1850.3,1850.2,6.01017]
[1746121618858,0.8585,1850.5,1850.4,1.08036]
[1746121619252,0.8527,1850.6,1850.5,1.0803]
[1746121620153,0.8527,1850.6,1850.5,4.2881]
[1746121620354,0.8527,1850.6,1850.5,1.0803]
[1746121621260,0.8527,1850.6,1850.5,4.2881]
[1746121621759,0.8527,1850.6,1850.5,1.0803]
[1746121622454,0.8527,1850.6,1849.9,6.35953]
[1746121622455,2.70075,1850.5,1849.9,6.35953]
[1746121622659,1.08046,1850.3,1850.2,1.08046]
[1746121623051,2.70446,1850.3,1850.2,1.08046]
[1746121623248,2.70441,1850.3,1850.2,1.08046]
[1746121624959,1.08051,1850.2,1850.1,1.08049]
[1746121625261,4.33361,1850.2,1850.1,1.08049]
[1746121625458,4.33357,1850.2,1850.1,1.08049]
[1746121626167,3.2531,1850.2,1850.1,1.08049]
[1746121626562,4.33357,1850.2,1850.1,1.08049]
[1746121627168,3.2531,1850.2,1850.1,1.08049]
[1746121628165,4.33357,1850.2,1850.1,1.08049]
[1746121628864,8.2531,1850.2,1849.3,3.2078]
[1746121629070,3.2078,1849.8,1849.3,3.2078]
[1746121629268,1.08084,1849.6,1849.2,1.6878]
[1746121629461,1.6325,1849.5,1849.4,1.08088]
[1746121629767,1.6325,1849.5,1849.2,1.6878]
[1746121630071,1.08096,1849.4,1849.3,1.081]
[1746121630271,2.71342,1849.5,1849.1,3.2078]
[1746121630474,2.7021,1849.7,1849.3,5.91025]
[1746121630667,2.71332,1849.6,1849.5,1.08088]
[1746121630868,1.6325,1849.6,1849.5,1.08088]
[1746121631771,2.71332,1849.6,1849.5,1.08088]
[1746121632774,1.6325,1849.6,1849.5,1.08088]
[1746121633676,2.71335,1849.6,1849.5,1.08088]
[1746121633877,1.08088,1849.5,1849.4,1.08092]
[1746121634067,1.6778,1849.5,1849.4,1.08092]
[1746121635475,2.75868,1849.5,1849.4,1.08092]
[1746121636272,1.6778,1849.5,1849.4,1.08092]
[1746121637572,1.08094,1849.4,1849.3,1.08095]
[1746121638072,1.93204,1849.4,1849.3,1.08095]
[1746121638873,1.081,1849.3,1849.2,4.28881]
[1746121639073,3.5186,1849.3,1849.2,4.28881]
[1746121639278,3.5186,1849.3,1849.2,1.08101]
[1746121640073,2.4376,1849.3,1849.2,1.08101]
[1746121640677,3.5186,1849.3,1849.2,1.08101]
[1746121641174,1.08106,1849.2,1849.1,4.74007]
[1746121641379,2.75116,1849.2,1849.1,4.74007]
[1746121641770,2.75116,1849.2,1849.1,1.08107]
[1746121642178,1.6701,1849.2,1849.1,1.08107]
[1746121643782,1.6701,1849.2,1849.1,3.55077]
[1746121644079,2.75116,1849.2,1849.1,3.55077]
[1746121644268,1.6701,1849.2,1849.1,3.55077]
[1746121645179,2.75116,1849.2,1849.1,3.55077]
[1746121645373,1.6701,1849.2,1849.1,3.55077]
[1746121645568,6.6701,1849.2,1848.9,3.2078]
[1746121645772,6.6701,1849.2,1849.0,1.08117]
[1746121645773,1.94666,1849.1,1849.0,1.08117]
[1746121645973,2.6034,1849.1,1849.0,1.08117]
[1746121646173,3.68452,1849.1,1849.0,1.08117]
[1746121646670,2.6034,1849.1,1849.0,1.08117]
[1746121646966,3.68452,1849.1,1849.0,1.08117]
[1746121647586,1.08117,1849.0,1848.9,2.7166]
[1746121647781,2.78757,1849.0,1848.9,1.0812]
[1746121648275,1.08128,1848.9,1848.8,1.08127]
[1746121648577,3.62458,1848.9,1848.8,1.08127]
[1746121650480,1.08141,1848.6,1848.5,8.25602883]
[1746121650779,1.08137,1848.7,1848.6,1.08137]
[1746121650979,2.68037,1848.7,1848.6,1.08137]
[1746121652078,0.8369,1848.9,1848.5,7.59739]
[1746121652278,1.6602,1848.9,1848.8,1.08129]
[1746121652582,2.74143,1848.9,1848.8,1.08129]
[1746121656479,1.08129,1848.8,1848.7,1.8685]
[1746121656689,1.08135,1848.7,1848.6,1.0814]
[1746121656877,1.89625,1848.7,1848.6,1.0814]
[1746121659388,3.60315,1848.7,1848.6,1.0814]
[1746121662190,1.08141,1848.6,1848.5,2.67111]
[1746121662389,2.76821,1848.6,1848.5,2.67111]
[1746121662781,3.61941,1848.6,1848.5,2.67111]
[1746121663188,3.61941,1848.6,1848.5,1.08141]
[1746121667488,0.8149,1848.7,1848.6,1.08141]
[1746121667787,3.6402,1848.9,1848.8,1.08123]
[1746121668293,3.64013,1848.9,1848.8,1.08123]
[1746121668585,3.64013,1848.9,1848.8,3.57663]
[1746121672988,2.5589,1848.9,1848.8,3.57663]
[1746121673491,3.64013,1848.9,1848.8,3.57663]
[1746121673991,3.64013,1848.9,1848.8,1.93723]
[1746121674289,2.77353,1848.9,1848.8,1.93723]
[1746121674492,2.77353,1848.9,1848.8,3.54703]
[1746121675090,1.6923,1848.9,1848.8,3.54703]
[1746121675391,2.77353,1848.9,1848.7,0.8304]
[1746121675590,1.08129,1848.8,1848.7,1.0813]
[1746121675894,2.73089,1848.8,1848.7,1.0813]
[1746121680699,1.6496,1848.8,1848.7,1.0813]
[1746121680898,2.73089,1848.8,1848.7,2.717]
[1746121681189,1.6496,1848.8,1848.7,2.717]
[1746121681389,1.08129,1848.9,1848.8,1.08123]
[1746121681585,2.76849,1848.9,1848.8,1.08123]
[1746121683001,1.08129,1848.8,1848.7,2.71702]
[1746121683196,2.78649,1848.8,1848.7,1.08132]
[1746121684797,1.7052,1848.8,1848.7,4.28912]
[1746121684998,1.7052,1848.8,1848.7,1.08132]
[1746121685802,1.7052,1848.8,1848.7,2.79032]
[1746121687001,2.78649,1848.8,1848.7,2.79032]
[1746121688104,1.08135,1848.7,1848.6,1.93405]
[1746121688301,1.08141,1848.6,1848.5,4.28922]
[1746121688598,3.60789,1848.7,1848.6,1.08141]
[1746121688799,3.60789,1848.7,1848.6,1.88881]
[1746121689196,1.6833,1848.7,1848.6,1.88881]
[1746121689501,1.6833,1848.7,1848.6,3.61361]
[1746121690399,13.88558666,1849.3,1848.6,2.5322]
[1746121690602,0.7953,1849.1,1849.0,1.08112]
[1746121690800,5.34494666,1849.3,1849.2,1.08106]
[1746121691105,8.19311188,1849.3,1849.2,4.28886]
[1746121691292,7.11211188,1849.3,1849.2,4.28886]
[1746121691802,8.19311188,1849.3,1849.2,6.01366]
[1746121692102,9.85501188,1849.3,1849.2,2.80586]
[1746121692707,8.77401188,1849.3,1849.2,2.80586]
[1746121693204,8.77401188,1849.3,1849.2,1.08106]
[1746121693512,7.11211188,1849.3,1849.2,1.08106]
[1746121693806,7.11211188,1849.3,1849.2,2.66586]
[1746121695308,6.99913838,1849.5,1849.4,1.08094]
[1746121695608,6.99913838,1849.5,1849.4,4.28874]
[1746121696097,6.99913838,1849.5,1849.4,6.83394]
[1746121696300,5.33723838,1849.5,1849.4,6.83394]
[1746121696511,5.33723838,1849.5,1849.4,11.83394]
[1746121698911,1.7311,1849.7,1849.6,1.08082]
[1746121699111,1.7311,1849.7,1849.6,7.94662]
[1746121700011,1.751084,1849.7,1849.6,7.94662]
[1746121700807,2.831844,1849.7,1849.6,7.94662]
[1746121701113,2.831844,1849.7,1849.6,3.2078]
[1746121701313,7.831844,1849.7,1849.6,3.2078]
[1746121703512,1.08088,1849.5,1849.4,1.08092]